[Event "*** Titled Tuesday Blitz"]
[Site "Chess.com"]
[Date "2020.04.21"]
[Round "5"]
[White "Firegrizzly"]
[Black "Trankuilizer"]
[Result "0-1"]
[WhiteElo "2666"]
[BlackElo "2518"]
[TimeControl "180+1"]
[EndTime "10:57:46 PDT"]
[Termination "Trankuilizer won by resignation"]

1. d4 {[%clk 0:03:00.9]} 1... d5 {[%clk 0:02:59.8]} 2. Bf4 {[%clk 0:02:59.1]}
2... Nf6 {[%clk 0:02:58.6]} 3. e3 {[%clk 0:02:58.2]} 3... c5 {[%clk 0:02:58.7]}
4. c3 {[%clk 0:02:57.7]} 4... Nc6 {[%clk 0:02:56.8]} 5. Nf3 {[%clk 0:02:57.6]}
5... Qb6 {[%clk 0:02:56.7]} 6. Qb3 {[%clk 0:02:52.8]} 6... c4 {[%clk 0:02:56.7]}
7. Qc2 {[%clk 0:02:51]} 7... Bf5 {[%clk 0:02:55.8]} 8. Qc1 {[%clk 0:02:51.6]}
8... Nh5 {[%clk 0:02:47.5]} 9. Nbd2 {[%clk 0:02:45.9]} 9... Nxf4 {[%clk
0:02:41.2]} 10. exf4 {[%clk 0:02:46.8]} 10... g6 {[%clk 0:02:35.7]} 11. Be2
{[%clk 0:02:45.1]} 11... Bg7 {[%clk 0:02:36]} 12. O-O {[%clk 0:02:44.7]} 12...
O-O {[%clk 0:02:36.4]} 13. Re1 {[%clk 0:02:44.1]} 13... Rae8 {[%clk 0:02:30.5]}
14. b3 {[%clk 0:02:42.8]} 14... cxb3 {[%clk 0:02:27.5]} 15. axb3 {[%clk
0:02:42.3]} 15... Rc8 {[%clk 0:02:23.3]} 16. Qb2 {[%clk 0:02:41.1]} 16... Rfd8
{[%clk 0:02:21.4]} 17. b4 {[%clk 0:02:38.1]} 17... a6 {[%clk 0:02:14.9]} 18. Nb3
{[%clk 0:02:37.1]} 18... Na7 {[%clk 0:02:11.8]} 19. Nc5 {[%clk 0:02:34]} 19...
Bf6 {[%clk 0:02:07.9]} 20. Bf1 {[%clk 0:02:22.5]} 20... Nb5 {[%clk 0:02:04.4]}
21. Ne5 {[%clk 0:02:18.6]} 21... h5 {[%clk 0:01:52.5]} 22. h3 {[%clk 0:02:11.4]}
22... h4 {[%clk 0:01:51.8]} 23. Red1 {[%clk 0:02:06]} 23... Nd6 {[%clk
0:01:50.1]} 24. Be2 {[%clk 0:01:59.1]} 24... Qc7 {[%clk 0:01:47.9]} 25. Bf3
{[%clk 0:01:56.4]} 25... b6 {[%clk 0:01:40.8]} 26. Nxa6 {[%clk 0:01:51.4]} 26...
Qxc3 {[%clk 0:01:40.5]} 27. Qxc3 {[%clk 0:01:50.9]} 27... Rxc3 {[%clk
0:01:40.6]} 28. Bxd5 {[%clk 0:01:50.9]} 28... e6 {[%clk 0:01:37.9]} 29. Bf3
{[%clk 0:01:48]} 29... Nb5 {[%clk 0:01:36.2]} 30. d5 {[%clk 0:01:40.1]} 30...
Rxf3 {[%clk 0:01:31.6]} 31. gxf3 {[%clk 0:01:38]} 31... exd5 {[%clk 0:01:28.3]}
32. Rac1 {[%clk 0:01:34.4]} 32... d4 {[%clk 0:01:22.8]} 33. Nc7 {[%clk
0:01:33.1]} 33... Nc3 {[%clk 0:01:21.7]} 34. Rd2 {[%clk 0:01:26.2]} 34... Kg7
{[%clk 0:01:07]} 35. Kg2 {[%clk 0:01:25.6]} 35... Rc8 {[%clk 0:00:32.3]} 36. Na6
{[%clk 0:01:19]} 36... g5 {[%clk 0:00:32]} 37. Rxd4 {[%clk 0:01:08.6]} 37... Ne2
{[%clk 0:00:20.4]} 38. Rxc8 {[%clk 0:01:06.6]} 38... Bxc8 {[%clk 0:00:20.8]} 39.
Rd6 {[%clk 0:00:49.7]} 39... Nxf4+ {[%clk 0:00:18.4]} 40. Kh1 {[%clk 0:00:48.4]}
40... Bxe5 {[%clk 0:00:13.4]} 41. Rxb6 {[%clk 0:00:48]} 41... Bxh3 {[%clk
0:00:13.2]} 42. Nc5 {[%clk 0:00:46.3]} 42... Bg2+ {[%clk 0:00:13.3]} 43. Kg1
{[%clk 0:00:45.9]} 43... Bxf3 {[%clk 0:00:14.2]} 44. Rb5 {[%clk 0:00:40.6]}
44... Ne2+ {[%clk 0:00:01.3]} 45. Kf1 {[%clk 0:00:39.4]} 45... Bf4 {[%clk
0:00:01.6]} 46. Nd3 {[%clk 0:00:36.1]} 46... h3 {[%clk 0:00:01.9]} 47. Nxf4
{[%clk 0:00:35.1]} 47... gxf4 {[%clk 0:00:02.8]} 48. Rg5+ {[%clk 0:00:32.5]}
48... Kf6 {[%clk 0:00:02.7]} 49. Rg8 {[%clk 0:00:31]} 49... h2 {[%clk
0:00:03.1]} 50. Rh8 {[%clk 0:00:31.9]} 50... h1=Q+ {[%clk 0:00:04]} 51. Rxh1
{[%clk 0:00:31.2]} 51... Bxh1 {[%clk 0:00:04.9]} 52. Kxe2 {[%clk 0:00:32.1]}
52... Ke5 {[%clk 0:00:05.2]} 53. Kd3 {[%clk 0:00:33]} 53... Kd5 {[%clk
0:00:05.3]} 54. Kc3 {[%clk 0:00:32.8]} 54... Be4 {[%clk 0:00:05.5]} 55. Kb3
{[%clk 0:00:32.4]} 55... Bd3 {[%clk 0:00:05.4]} 56. Kc3 {[%clk 0:00:31.8]} 56...
Bb5 {[%clk 0:00:05.3]} 57. Kb3 {[%clk 0:00:30.8]} 57... f5 {[%clk 0:00:06.2]}
58. Kc3 {[%clk 0:00:30.8]} 58... Ke4 {[%clk 0:00:06.5]} 59. Kd2 {[%clk
0:00:30.6]} 59... Kd4 {[%clk 0:00:06.8]} 60. f3 {[%clk 0:00:30]} 60... Kc4
{[%clk 0:00:05.9]} 0-1

[Event "*** Titled Tuesday Blitz"]
[Site "Chess.com"]
[Date "2020.04.21"]
[Round "5"]
[White "dcann0n88"]
[Black "tonyq11"]
[Result "1/2-1/2"]
[WhiteElo "2402"]
[BlackElo "2247"]
[TimeControl "180+1"]
[EndTime "10:57:46 PDT"]
[Termination "Game drawn - insufficient material"]

1. e4 {[%clk 0:02:58.2]} 1... c5 {[%clk 0:02:59.4]} 2. Nf3 {[%clk 0:02:58.1]}
2... e6 {[%clk 0:02:59.9]} 3. d4 {[%clk 0:02:58.6]} 3... cxd4 {[%clk 0:03:00.8]}
4. Nxd4 {[%clk 0:02:59.5]} 4... Nc6 {[%clk 0:03:01.4]} 5. c4 {[%clk 0:02:58.4]}
5... Nf6 {[%clk 0:03:00.5]} 6. Nc3 {[%clk 0:02:57.1]} 6... Bb4 {[%clk
0:03:00.4]} 7. Nb5 {[%clk 0:02:52.9]} 7... O-O {[%clk 0:02:47.2]} 8. a3 {[%clk
0:02:27.8]} 8... Be7 {[%clk 0:02:35.7]} 9. Be2 {[%clk 0:02:24]} 9... a6 {[%clk
0:02:30.9]} 10. Nd4 {[%clk 0:02:23.5]} 10... d5 {[%clk 0:02:29.4]} 11. exd5
{[%clk 0:02:18.3]} 11... exd5 {[%clk 0:02:28.1]} 12. O-O {[%clk 0:02:18.9]}
12... dxc4 {[%clk 0:02:18.1]} 13. Nxc6 {[%clk 0:01:57.6]} 13... bxc6 {[%clk
0:02:19]} 14. Bxc4 {[%clk 0:01:57.3]} 14... Bg4 {[%clk 0:02:16]} 15. Qc2 {[%clk
0:01:54.4]} 15... Qc7 {[%clk 0:02:05.3]} 16. h3 {[%clk 0:01:51.7]} 16... Bh5
{[%clk 0:01:57.5]} 17. Bg5 {[%clk 0:01:38.4]} 17... Rad8 {[%clk 0:01:43.4]} 18.
Bxa6 {[%clk 0:01:20.1]} 18... Qa5 {[%clk 0:01:21.1]} 19. Bxf6 {[%clk 0:01:16.9]}
19... Bxf6 {[%clk 0:01:20.4]} 20. Be2 {[%clk 0:01:16.6]} 20... Bg6 {[%clk
0:01:17.9]} 21. Qc1 {[%clk 0:01:13.1]} 21... Rfe8 {[%clk 0:01:12.9]} 22. Bf3
{[%clk 0:01:02.5]} 22... c5 {[%clk 0:00:52.1]} 23. Nd5 {[%clk 0:00:59.8]} 23...
Bd4 {[%clk 0:00:48.5]} 24. b4 {[%clk 0:00:53.1]} 24... cxb4 {[%clk 0:00:43.3]}
25. axb4 {[%clk 0:00:53.1]} 25... Qxa1 {[%clk 0:00:42.3]} 26. Qxa1 {[%clk
0:00:52.4]} 26... Bxa1 {[%clk 0:00:41.8]} 27. Rxa1 {[%clk 0:00:53.3]} 27... Be4
{[%clk 0:00:35.8]} 28. Bxe4 {[%clk 0:00:46.3]} 28... Rxe4 {[%clk 0:00:36.7]} 29.
b5 {[%clk 0:00:43.1]} 29... Re5 {[%clk 0:00:28.4]} 30. Nc7 {[%clk 0:00:36.7]}
30... Rc5 {[%clk 0:00:17.9]} 31. b6 {[%clk 0:00:36.5]} 31... g6 {[%clk
0:00:13.5]} 32. Rb1 {[%clk 0:00:32.8]} 32... Rb8 {[%clk 0:00:13.3]} 33. Kh2
{[%clk 0:00:29.7]} 33... Rc6 {[%clk 0:00:11.3]} 34. Nd5 {[%clk 0:00:29.4]} 34...
Rd6 {[%clk 0:00:09.5]} 35. Rb5 {[%clk 0:00:27.7]} 35... Kf8 {[%clk 0:00:04.6]}
36. Kg3 {[%clk 0:00:27.4]} 36... f5 {[%clk 0:00:04.6]} 37. Kf4 {[%clk
0:00:27.6]} 37... Rxd5 {[%clk 0:00:03.5]} 38. Rxd5 {[%clk 0:00:27.1]} 38... Rxb6
{[%clk 0:00:03.9]} 39. Rd7 {[%clk 0:00:27.6]} 39... Kg8 {[%clk 0:00:03]} 40. Kg5
{[%clk 0:00:28.2]} 40... Rb2 {[%clk 0:00:02.4]} 41. Kh6 {[%clk 0:00:22.6]} 41...
Rxf2 {[%clk 0:00:02.4]} 42. Rg7+ {[%clk 0:00:18.4]} 42... Kf8 {[%clk 0:00:02.7]}
43. g3 {[%clk 0:00:11.9]} 43... Rh2 {[%clk 0:00:02.6]} 44. h4 {[%clk 0:00:10.9]}
44... Rh3 {[%clk 0:00:02.9]} 45. Rxh7 {[%clk 0:00:09.1]} 45... Rxg3 {[%clk
0:00:03.3]} 46. Ra7 {[%clk 0:00:08.7]} 46... f4 {[%clk 0:00:03.6]} 47. Ra4
{[%clk 0:00:08.2]} 47... f3 {[%clk 0:00:03.6]} 48. Rf4+ {[%clk 0:00:07.3]} 48...
Kg8 {[%clk 0:00:04.1]} 49. h5 {[%clk 0:00:05.3]} 49... gxh5 {[%clk 0:00:04]} 50.
Kxh5 {[%clk 0:00:04.6]} 50... Rh3+ {[%clk 0:00:03.7]} 51. Kg4 {[%clk 0:00:04.8]}
51... Rh7 {[%clk 0:00:03.5]} 52. Kxf3 {[%clk 0:00:04.9]} 52... Rg7 {[%clk
0:00:04.1]} 53. Ke4 {[%clk 0:00:04.8]} 53... Rf7 {[%clk 0:00:04.4]} 54. Rg4+
{[%clk 0:00:05.5]} 54... Rg7 {[%clk 0:00:04.4]} 55. Rh4 {[%clk 0:00:06.4]} 55...
Rh7 {[%clk 0:00:04.5]} 56. Rf4 {[%clk 0:00:07]} 56... Rf7 {[%clk 0:00:04.8]} 57.
Rg4+ {[%clk 0:00:07.6]} 57... Rg7 {[%clk 0:00:05.3]} 58. Rh4 {[%clk 0:00:08.1]}
58... Rh7 {[%clk 0:00:05.7]} 59. Rxh7 {[%clk 0:00:07.5]} 59... Kxh7 {[%clk
0:00:05.7]} 1/2-1/2

[Event "*** Titled Tuesday Blitz"]
[Site "Chess.com"]
[Date "2020.04.21"]
[Round "5"]
[White "IAgrest"]
[Black "Pavalamalli"]
[Result "0-1"]
[WhiteElo "2261"]
[BlackElo "2151"]
[TimeControl "180+1"]
[EndTime "10:57:47 PDT"]
[Termination "Pavalamalli won on time"]

1. e4 {[%clk 0:03:00.9]} 1... c5 {[%clk 0:02:59.5]} 2. Nf3 {[%clk 0:02:57.7]}
2... e6 {[%clk 0:02:58.8]} 3. d4 {[%clk 0:02:58.1]} 3... cxd4 {[%clk 0:02:57.9]}
4. Nxd4 {[%clk 0:02:59]} 4... Nc6 {[%clk 0:02:57.5]} 5. Nc3 {[%clk 0:02:57.5]}
5... Qc7 {[%clk 0:02:56.9]} 6. Be3 {[%clk 0:02:55.3]} 6... a6 {[%clk 0:02:56.4]}
7. Qf3 {[%clk 0:02:55]} 7... Nf6 {[%clk 0:02:53.2]} 8. O-O-O {[%clk 0:02:53.3]}
8... Rb8 {[%clk 0:02:43.6]} 9. Be2 {[%clk 0:02:48.7]} 9... Bb4 {[%clk
0:02:40.7]} 10. Bf4 {[%clk 0:02:02.2]} 10... e5 {[%clk 0:02:39]} 11. Nxc6 {[%clk
0:01:58]} 11... bxc6 {[%clk 0:02:18]} 12. Bg3 {[%clk 0:01:52.6]} 12... Bxc3
{[%clk 0:02:08.6]} 13. Qxc3 {[%clk 0:01:46.3]} 13... d6 {[%clk 0:01:53.5]} 14.
Bd3 {[%clk 0:01:30.3]} 14... O-O {[%clk 0:01:51.9]} 15. f4 {[%clk 0:01:29.2]}
15... exf4 {[%clk 0:01:44.4]} 16. Bxf4 {[%clk 0:01:29]} 16... Nd7 {[%clk
0:01:40.4]} 17. Bc4 {[%clk 0:00:49.8]} 17... Ne5 {[%clk 0:01:39.5]} 18. Bb3
{[%clk 0:00:44.7]} 18... Bg4 {[%clk 0:01:34.1]} 19. Rd2 {[%clk 0:00:43.8]} 19...
Rbe8 {[%clk 0:01:27.7]} 20. h3 {[%clk 0:00:42.2]} 20... Bh5 {[%clk 0:01:26.9]}
21. g4 {[%clk 0:00:38.3]} 21... Bg6 {[%clk 0:01:27]} 22. Rhd1 {[%clk 0:00:38.2]}
22... Bxe4 {[%clk 0:01:04.9]} 23. Rxd6 {[%clk 0:00:34.6]} 23... Qe7 {[%clk
0:00:49.4]} 24. R6d4 {[%clk 0:00:25.4]} 24... Bf3 {[%clk 0:00:34.2]} 25. Rf1
{[%clk 0:00:24.5]} 25... Bg2 {[%clk 0:00:31.5]} 26. Rg1 {[%clk 0:00:19.9]} 26...
Nf3 {[%clk 0:00:25.5]} 27. Rxg2 {[%clk 0:00:17.2]} 27... Nxd4 {[%clk 0:00:25.4]}
28. Qxd4 {[%clk 0:00:17]} 28... Qe1+ {[%clk 0:00:23.8]} 29. Qd1 {[%clk
0:00:17.1]} 29... Qh4 {[%clk 0:00:19.5]} 30. Re2 {[%clk 0:00:13]} 30... Qxh3
{[%clk 0:00:18.2]} 31. Bd6 {[%clk 0:00:10.4]} 31... Rxe2 {[%clk 0:00:17.5]} 32.
Qxe2 {[%clk 0:00:10.6]} 32... Qh1+ {[%clk 0:00:17.5]} 33. Kd2 {[%clk 0:00:09.5]}
33... Rd8 {[%clk 0:00:16.9]} 34. Bxf7+ {[%clk 0:00:08.5]} 34... Kh8 {[%clk
0:00:15.3]} 35. Qe7 {[%clk 0:00:08.4]} 35... Qh6+ {[%clk 0:00:15.1]} 36. g5
{[%clk 0:00:06.8]} 36... Qxd6+ {[%clk 0:00:15.4]} 37. Qxd6 {[%clk 0:00:05.6]}
37... Rxd6+ {[%clk 0:00:16]} 38. Ke3 {[%clk 0:00:05.4]} 38... g6 {[%clk
0:00:16.3]} 39. Bc4 {[%clk 0:00:05.2]} 39... Kg7 {[%clk 0:00:16.2]} 40. Bxa6
{[%clk 0:00:05]} 40... h6 {[%clk 0:00:15.9]} 41. gxh6+ {[%clk 0:00:04.7]} 41...
Kxh6 {[%clk 0:00:16.2]} 42. Bc8 {[%clk 0:00:03.4]} 42... g5 {[%clk 0:00:16.2]}
43. a4 {[%clk 0:00:03]} 43... Rd8 {[%clk 0:00:15.2]} 44. Bg4 {[%clk 0:00:02.3]}
44... Ra8 {[%clk 0:00:14.4]} 45. b3 {[%clk 0:00:02.2]} 45... Rb8 {[%clk
0:00:14.5]} 46. a5 {[%clk 0:00:01.6]} 46... Rb5 {[%clk 0:00:14.5]} 47. a6 {[%clk
0:00:01.6]} 47... Ra5 {[%clk 0:00:14.7]} 48. Be2 {[%clk 0:00:01.8]} 48... Kg6
{[%clk 0:00:14.9]} 49. b4 {[%clk 0:00:01.5]} 49... Ra2 {[%clk 0:00:13.5]} 0-1

[Event "*** Titled Tuesday Blitz"]
[Site "Chess.com"]
[Date "2020.04.21"]
[Round "5"]
[White "exoticprincess"]
[Black "VerdeNotte"]
[Result "0-1"]
[WhiteElo "2850"]
[BlackElo "2742"]
[TimeControl "180+1"]
[EndTime "10:57:48 PDT"]
[Termination "VerdeNotte won by checkmate"]

1. d4 {[%clk 0:03:00.9]} 1... Nf6 {[%clk 0:02:58.9]} 2. Bg5 {[%clk 0:02:58.4]}
2... d5 {[%clk 0:02:57.5]} 3. e3 {[%clk 0:02:58.2]} 3... c5 {[%clk 0:02:56.8]}
4. dxc5 {[%clk 0:02:58.1]} 4... Ne4 {[%clk 0:02:52.5]} 5. Bh4 {[%clk 0:02:57.6]}
5... g5 {[%clk 0:02:47.9]} 6. Bg3 {[%clk 0:02:57.4]} 6... Bg7 {[%clk 0:02:48.3]}
7. c3 {[%clk 0:02:55.7]} 7... Nc6 {[%clk 0:02:45.2]} 8. Nd2 {[%clk 0:02:55.4]}
8... Nxc5 {[%clk 0:02:40.7]} 9. h4 {[%clk 0:02:55.1]} 9... g4 {[%clk 0:02:38.9]}
10. h5 {[%clk 0:02:55.4]} 10... Bf5 {[%clk 0:02:35.5]} 11. h6 {[%clk 0:02:52.7]}
11... Bf6 {[%clk 0:02:35.4]} 12. Bh4 {[%clk 0:02:44.3]} 12... e6 {[%clk
0:02:21.2]} 13. Bxf6 {[%clk 0:02:39.9]} 13... Qxf6 {[%clk 0:02:22.1]} 14. Nb3
{[%clk 0:02:35]} 14... Ne4 {[%clk 0:02:19.3]} 15. Qe2 {[%clk 0:01:10.8]} 15...
g3 {[%clk 0:02:17.8]} 16. f3 {[%clk 0:01:00.7]} 16... Nf2 {[%clk 0:02:16.7]} 17.
Rh5 {[%clk 0:01:00.8]} 17... Bg6 {[%clk 0:02:07]} 18. Rh3 {[%clk 0:00:59.6]}
18... Bd3 {[%clk 0:02:05.6]} 19. Qd2 {[%clk 0:00:55.1]} 19... Nxh3 {[%clk
0:02:03.2]} 20. Nxh3 {[%clk 0:00:54]} 20... Bxf1 {[%clk 0:02:02.9]} 21. Kxf1
{[%clk 0:00:54.9]} 21... Qxh6 {[%clk 0:02:02.9]} 22. Rd1 {[%clk 0:00:52.5]}
22... O-O-O {[%clk 0:01:58.5]} 23. Qe1 {[%clk 0:00:49.9]} 23... Rhg8 {[%clk
0:01:55.3]} 24. Nc1 {[%clk 0:00:47.6]} 24... e5 {[%clk 0:01:52.9]} 25. Nb3
{[%clk 0:00:47.9]} 25... e4 {[%clk 0:01:50.4]} 26. f4 {[%clk 0:00:47.8]} 26...
Qh5 {[%clk 0:01:41]} 27. Qe2 {[%clk 0:00:45.9]} 27... Qxe2+ {[%clk 0:01:39.2]}
28. Kxe2 {[%clk 0:00:46.8]} 28... f6 {[%clk 0:01:38.3]} 29. Kd2 {[%clk
0:00:44.8]} 29... b6 {[%clk 0:01:37.7]} 30. Rh1 {[%clk 0:00:45]} 30... Rg7
{[%clk 0:01:34.7]} 31. Ng1 {[%clk 0:00:45.2]} 31... Kd7 {[%clk 0:01:33.5]} 32.
Ne2 {[%clk 0:00:44.5]} 32... Ke6 {[%clk 0:01:30]} 33. Rh5 {[%clk 0:00:44.6]}
33... a5 {[%clk 0:01:25.7]} 34. a4 {[%clk 0:00:43.8]} 34... Rdd7 {[%clk
0:01:14.4]} 35. Rh3 {[%clk 0:00:42.7]} 35... Kd6 {[%clk 0:01:09.5]} 36. Nxg3
{[%clk 0:00:40.1]} 36... Kc7 {[%clk 0:01:08.8]} 37. Ke1 {[%clk 0:00:40.7]} 37...
Rg8 {[%clk 0:01:05.7]} 38. Kf2 {[%clk 0:00:41.1]} 38... Rdg7 {[%clk 0:01:05.7]}
39. Nc1 {[%clk 0:00:41.7]} 39... b5 {[%clk 0:00:48.7]} 40. axb5 {[%clk
0:00:41.4]} 40... Na7 {[%clk 0:00:49.3]} 41. Nce2 {[%clk 0:00:41.6]} 41... Nxb5
{[%clk 0:00:49.4]} 42. Rh6 {[%clk 0:00:40.2]} 42... Rf7 {[%clk 0:00:47.6]} 43.
Nf5 {[%clk 0:00:38.1]} 43... Nd6 {[%clk 0:00:42.2]} 44. Nfd4 {[%clk 0:00:30.1]}
44... a4 {[%clk 0:00:35.3]} 45. Nc2 {[%clk 0:00:26.8]} 45... Nc4 {[%clk
0:00:34]} 46. Ned4 {[%clk 0:00:26.9]} 46... Nxb2 {[%clk 0:00:32.8]} 47. Nb5+
{[%clk 0:00:25.1]} 47... Kb6 {[%clk 0:00:31]} 48. Nd6 {[%clk 0:00:25.4]} 48...
Nd3+ {[%clk 0:00:28]} 49. Kf1 {[%clk 0:00:25.1]} 49... Rc7 {[%clk 0:00:21.6]}
50. Rxf6 {[%clk 0:00:24.5]} 50... Rg6 {[%clk 0:00:21.8]} 51. Nxe4+ {[%clk
0:00:22.6]} 51... Rxf6 {[%clk 0:00:21.7]} 52. Nxf6 {[%clk 0:00:23.5]} 52... Kc5
{[%clk 0:00:17.7]} 53. Ke2 {[%clk 0:00:23.1]} 53... Nc1+ {[%clk 0:00:14.8]} 54.
Kd2 {[%clk 0:00:20.4]} 54... Nb3+ {[%clk 0:00:15.1]} 55. Kd3 {[%clk 0:00:21]}
55... Rf7 {[%clk 0:00:15]} 56. Ng4 {[%clk 0:00:20.3]} 56... Rg7 {[%clk
0:00:15.5]} 57. Ne5 {[%clk 0:00:20.5]} 57... Rxg2 {[%clk 0:00:15.6]} 58. Nf3
{[%clk 0:00:18.2]} 58... Nc1# {[%clk 0:00:15.5]} 0-1

[Event "*** Titled Tuesday Blitz"]
[Site "Chess.com"]
[Date "2020.04.21"]
[Round "5"]
[White "MITerryble"]
[Black "Maybe00"]
[Result "0-1"]
[WhiteElo "2841"]
[BlackElo "2650"]
[TimeControl "180+1"]
[EndTime "10:57:48 PDT"]
[Termination "Maybe00 won by resignation"]

1. Nf3 {[%clk 0:03:00.9]} 1... d5 {[%clk 0:03:00.1]} 2. d4 {[%clk 0:03:00.3]}
2... Nf6 {[%clk 0:03:00]} 3. c4 {[%clk 0:03:00.8]} 3... c6 {[%clk 0:03:00.4]} 4.
Nc3 {[%clk 0:03:00.9]} 4... e6 {[%clk 0:03:00.6]} 5. cxd5 {[%clk 0:02:58.6]}
5... exd5 {[%clk 0:03:00.2]} 6. Bg5 {[%clk 0:02:58.4]} 6... Be7 {[%clk
0:03:00.4]} 7. e3 {[%clk 0:02:59]} 7... Bf5 {[%clk 0:03:00.6]} 8. Qb3 {[%clk
0:02:58.8]} 8... Qb6 {[%clk 0:03:00.1]} 9. Nh4 {[%clk 0:02:57.7]} 9... Qxb3
{[%clk 0:02:48.6]} 10. axb3 {[%clk 0:02:58.6]} 10... Bc2 {[%clk 0:02:48.1]} 11.
b4 {[%clk 0:02:48.6]} 11... Bxb4 {[%clk 0:02:38]} 12. Bxf6 {[%clk 0:02:48.7]}
12... gxf6 {[%clk 0:02:38.9]} 13. Kd2 {[%clk 0:02:49]} 13... Bg6 {[%clk
0:02:38.7]} 14. Bd3 {[%clk 0:02:49.2]} 14... Nd7 {[%clk 0:02:36.7]} 15. Nf5
{[%clk 0:02:48.2]} 15... Nb6 {[%clk 0:02:31.9]} 16. h4 {[%clk 0:02:47]} 16...
Nc4+ {[%clk 0:02:25.2]} 17. Kc2 {[%clk 0:02:47]} 17... Nd6 {[%clk 0:02:18.1]}
18. Nxd6+ {[%clk 0:02:18.2]} 18... Bxd6 {[%clk 0:02:19]} 19. h5 {[%clk
0:02:18.8]} 19... Bxd3+ {[%clk 0:02:17.5]} 20. Kxd3 {[%clk 0:02:19.7]} 20... Rg8
{[%clk 0:02:14.6]} 21. g3 {[%clk 0:02:19.6]} 21... Kd7 {[%clk 0:02:12.9]} 22.
Rh4 {[%clk 0:01:35.5]} 22... f5 {[%clk 0:02:06.5]} 23. Rhh1 {[%clk 0:01:32.8]}
23... h6 {[%clk 0:02:03.8]} 24. Ra2 {[%clk 0:01:31.9]} 24... Bb4 {[%clk
0:01:58.8]} 25. Ne2 {[%clk 0:01:31.7]} 25... Bd6 {[%clk 0:01:58.9]} 26. Rha1
{[%clk 0:01:30.7]} 26... a6 {[%clk 0:01:56.8]} 27. Nc3 {[%clk 0:01:30.3]} 27...
Rae8 {[%clk 0:01:54.5]} 28. Rh1 {[%clk 0:01:27.1]} 28... Rg5 {[%clk 0:01:53.1]}
29. Raa1 {[%clk 0:01:26.5]} 29... Rg4 {[%clk 0:01:49]} 30. Ra2 {[%clk
0:01:25.4]} 30... Bb4 {[%clk 0:01:46.8]} 31. Ne2 {[%clk 0:01:25]} 31... Bd6
{[%clk 0:01:47]} 32. Raa1 {[%clk 0:01:21.6]} 32... Rg5 {[%clk 0:01:45.4]} 33.
Nc3 {[%clk 0:01:15.3]} 33... Ra8 {[%clk 0:01:44.4]} 34. Na4 {[%clk 0:01:14.6]}
34... Kc7 {[%clk 0:01:43.3]} 35. Nc3 {[%clk 0:01:14.6]} 35... a5 {[%clk
0:01:37.7]} 36. Rac1 {[%clk 0:01:11.4]} 36... Kd7 {[%clk 0:01:37.2]} 37. Na4
{[%clk 0:01:11.9]} 37... Ra6 {[%clk 0:01:35.6]} 38. Ra1 {[%clk 0:01:11.7]} 38...
b5 {[%clk 0:01:33.9]} 39. Nc3 {[%clk 0:01:11.3]} 39... Rg8 {[%clk 0:01:29.9]}
40. Nb1 {[%clk 0:01:02.7]} 40... Bb4 {[%clk 0:01:28]} 41. Rh4 {[%clk 0:01:00.3]}
41... Rg4 {[%clk 0:01:27.3]} 42. Rh1 {[%clk 0:00:59.9]} 42... a4 {[%clk
0:01:26.8]} 43. b3 {[%clk 0:00:56]} 43... Rg8 {[%clk 0:01:25.1]} 44. Nc3 {[%clk
0:00:45.7]} 44... Bxc3 {[%clk 0:01:23.7]} 45. Kxc3 {[%clk 0:00:45.7]} 45... b4+
{[%clk 0:01:17.9]} 46. Kb2 {[%clk 0:00:43.8]} 46... a3+ {[%clk 0:01:17.3]} 47.
Ka2 {[%clk 0:00:36.4]} 47... Ra5 {[%clk 0:01:15.2]} 48. Rh4 {[%clk 0:00:32.1]}
48... Rg4 {[%clk 0:01:11.9]} 49. Rhh1 {[%clk 0:00:14.5]} 49... c5 {[%clk
0:01:12.1]} 50. dxc5 {[%clk 0:00:13.5]} 50... Rxc5 {[%clk 0:01:10.4]} 51. Rac1
{[%clk 0:00:14]} 51... Rxc1 {[%clk 0:01:05.5]} 52. Rxc1 {[%clk 0:00:13.8]} 52...
Rg5 {[%clk 0:01:06.1]} 53. Rd1 {[%clk 0:00:12.9]} 53... Kd6 {[%clk 0:01:04.7]}
54. Rd4 {[%clk 0:00:11]} 54... Rg4 {[%clk 0:01:03]} 55. Rd1 {[%clk 0:00:07.1]}
55... d4 {[%clk 0:00:55.6]} 56. f3 {[%clk 0:00:04.5]} 56... Rxg3 {[%clk
0:00:55.2]} 57. Rxd4+ {[%clk 0:00:05.1]} 57... Kc5 {[%clk 0:00:55.8]} 58. Rc4+
{[%clk 0:00:05.4]} 58... Kb5 {[%clk 0:00:51.6]} 59. Rf4 {[%clk 0:00:05.4]} 59...
Rg2+ {[%clk 0:00:51.8]} 60. Ka1 {[%clk 0:00:05.5]} 60... Rg5 {[%clk 0:00:52.5]}
61. Rd4 {[%clk 0:00:05.5]} 61... Rxh5 {[%clk 0:00:52.1]} 62. Rd5+ {[%clk
0:00:05.7]} 62... Kc6 {[%clk 0:00:52.6]} 63. Ra5 {[%clk 0:00:04.6]} 63... Rh1+
{[%clk 0:00:51.9]} 64. Ka2 {[%clk 0:00:04.9]} 64... h5 {[%clk 0:00:52.5]} 65.
Rxf5 {[%clk 0:00:01.9]} 65... Rh2+ {[%clk 0:00:50.7]} 66. Ka1 {[%clk 0:00:02.8]}
66... h4 {[%clk 0:00:50.5]} 67. Rh5 {[%clk 0:00:02.4]} 67... Rb2 {[%clk
0:00:50.5]} 68. Rxh4 {[%clk 0:00:02.2]} 68... Rxb3 {[%clk 0:00:50.9]} 69. Rf4
{[%clk 0:00:02.7]} 69... Kb5 {[%clk 0:00:50.7]} 70. e4 {[%clk 0:00:02.8]} 70...
Re3 {[%clk 0:00:49.9]} 71. Rxf7 {[%clk 0:00:03.7]} 71... Ka4 {[%clk 0:00:50.1]}
72. Rd7 {[%clk 0:00:02.1]} 72... Re1+ {[%clk 0:00:50]} 0-1